Workbook

Sheet 請求書作成システム
L2: Ver.2.6
J3: ②消費税(通常) | K3: ③消費税(軽減税率) | L3: ④消費税(旧)
B4: ① | F4: ←最初に入力してください。 | J4: 10 | K4: 8 | L4: 8
B6: ② | F6: ←適宜、品名、件名等の一覧を作成してください。
B8: ③ | F8: ←納品時に入力してください。
B10: ④ | F10: ←月末に印刷、発注部門（担当営業所 or 支店 等）に送付ください。
B12: ⑤ | F12: ←変更した場合、必ず保存して終了してください。
A14: 修正履歴
A15: Ver. | B15: 2.6 | C15: 2019-09-17 | D15: 消費税改正対応（単価・数量の小数は非対応）
A16: Ver. | B16: 2.51 | C16: 2017-04-26 | D16: ロゴマークを変更（希望者のみに配布）
A17: Ver. | B17: 2.5 | C17: 2015-06-15 | D17: 単価・数量を小数第4位まで入力可能に変更。基本事項入力で小数桁数を任意に変更出来るように改善。（希望者のみに配布）
A18: Ver. | B18: 2.41 | C18: 2017-04-26 | D18: ロゴマークを変更
A19: Ver. | B19: 2.4 | C19: 2015-06-03 | D19: 対象月に品目が1件も無い場合でも、前月繰越金のみの請求書が印刷出来るように修正。
A20: Ver. | B20: 2.3 | C20: 2014-09-26 | D20: 伝票No.が同じ納品伝票がある場合に印刷データが誤りとなる不具合を修正。
D21: 伝票No.が同じ納品伝票を編集出来ない不具合を修正。
D22: 納品伝票新規入力時に伝票No.を自動入力するように改善。
D23: 納品伝票変更時に件名が長くならないように改善。
A24: Ver. | B24: 2.2 | C24: 2014-09-26 | D24: 伝票No.が同じ納品伝票がある場合に空白行になる不具合を修正。
A25: Ver. | B25: 2.1 | C25: 2014-09-25 | D25: 伝票No.の桁数が不揃いの場合に空白行になる不具合を修正。
D26: 複数ページになった場合には前月繰越金額を1ページ目のみとするように修正。
A27: Ver. | B27: 2 | C27: 2014-09-22 | D27: 消費税非課税品目に対応。
D28: 調整額に対応。
D29: 単価・数量を小数第2位まで入力可能に変更。
D30: 取引先コードの右側に発注部門を印刷するように変更。
A31: Ver. | B31: 1.2 | C31: 2014-08-29 | D31: 基本事項入力で振込先②③が読み出されない不具合を修正。
D32: 請求書で12件目以降の日付が正しく表示されない不具合を修正。
D33: 納品伝票新規入力時は標準で今日の日付が入るように改善。
A34: Ver. | B34: 1.1 | C34: 2014-08-25 | D34: 桁数制限を緩和。基本事項入力フォームを段組化。
A35: Ver. | B35: 1 | C35: 2014-08-01 | D35: 新規

Sheet 入力様式 (hidden)
B1: 現場名・担当者など | H1: 振込先① | N1: 請求者
B2: 発注部門 | D2: =データベース!E3 -> サンプル | H2: 金融機関 | N2: 郵便番号
B3: 現場名 | D3: =データベース!F3 -> サンプル | H3: 支店 | N3: 住所
B4: 工事番号 | D4: =データベース!G3 -> 0123-4567-8901 | H4: 預金種別 | J4: 1 | L4: =IF(J4=0,"",IF(J4=1,"普通","当座")) -> 普通 | N4: 会社名
B5: 現場担当者 | D5: =データベース!H3 -> サンプル | H5: 口座番号 | N5: 部門
H6: 口座名義 | N6: 担当者名
H7: 振込先② | N7: 電話
H8: 金融機関 | N8: FAX
H9: 支店 | N9: 取引先コード
H10: 預金種別 | J10: 0 | L10: =IF(J10=0,"",IF(J10=1,"普通","当座")) ->  | N10: 請求先 | O10: 1 | R10: =IF(O10=0,"",IF(O10=1,"福井",IF(O10=2,"大野",IF(O10=3,"真岡","")))) -> 福井
H11: 口座番号
H12: 振込先③
H13: 金融機関
H14: 支店
H15: 預金種別 | J15: 0 | L15: =IF(J15=0,"",IF(J15=1,"普通","当座")) -> 
H16: 口座番号
H18: 消費税区分 | J18: TRUE | K18: =IF(J18=TRUE,FALSE,TRUE) -> FALSE
H19: 消費税課税 | J19: TRUE | K19: FALSE | L19: FALSE | M19: FALSE
B22: 請求書日付 | G22: 請求項目
B23: 年月日 （西暦） | D23: =データベース!I3 -> 2019 | E23: 年 | G23: № | H23: 品名 | K23: 数量 | L23: 課税 | M23: 単価 | N23: 金額 | P23: 備考 | R23: 課税金額
D24: =データベース!J3 -> 9 | E24: 月 | G24: 1 | H24: =データベース!L3 -> サンプル | K24: =VALUE(データベース!M3) -> 1 | L24: =IF(データベース!N3=0,"",データベース!N3) ->  | M24: =VALUE(データベース!O3) -> 1000 | N24: =IF(K24="","",INT(K24*M24)) -> 1000 | P24: =IF(L24="非課税",L24 & " ","") & IF(データベース!P3=0,"",データベース!P3) ->  | R24: =IF(K24="","",IF(L24="非課税","",INT(K24*M24))) -> 1000
D25: =データベース!K3 -> 1 | E25: 日 | G25: 2 | H25: =データベース!Q3 -> サンプル | K25: =VALUE(データベース!R3) -> 2 | L25: =IF(データベース!S3=0,"",データベース!S3) ->  | M25: =VALUE(データベース!T3) -> 10 | N25: 20 | P25: =IF(L25="非課税",L25 & " ","") & IF(データベース!U3=0,"",データベース!U3) ->  | R25: =IF(K25="","",IF(L25="非課税","",INT(K25*M25))) -> 20
B26: 請求対象月 | D26: =D24 -> 9 | E26: 月分 | G26: 3 | H26: =データベース!V3 -> サンプル | K26: =VALUE(データベース!W3) -> 3 | L26: =IF(データベース!X3=0,"",データベース!X3) ->  | M26: =VALUE(データベース!Y3) -> 10 | N26: 30 | P26: =IF(L26="非課税",L26 & " ","") & IF(データベース!Z3=0,"",データベース!Z3) ->  | R26: 30
B27: 納品書印刷 | D27: TRUE | E27: =IF(D27=TRUE,FALSE,TRUE) -> FALSE | G27: 4 | H27: =データベース!AA3 -> サンプル | K27: =VALUE(データベース!AB3) -> 4 | L27: =IF(データベース!AC3=0,"",データベース!AC3) ->  | M27: =VALUE(データベース!AD3) -> 10 | N27: 40 | P27: =IF(L27="非課税",L27 & " ","") & IF(データベース!AE3=0,"",データベース!AE3) ->  | R27: 40
G28: 5 | H28: =データベース!AF3 -> サンプル | K28: =VALUE(データベース!AG3) -> 5 | L28: =IF(データベース!AH3=0,"",データベース!AH3) ->  | M28: =VALUE(データベース!AI3) -> 10 | N28: 50 | P28: =IF(L28="非課税",L28 & " ","") & IF(データベース!AJ3=0,"",データベース!AJ3) ->  | R28: 50
G29: 6 | H29: =データベース!AK3 -> サンプル | K29: =VALUE(データベース!AL3) -> 6 | L29: =IF(データベース!AM3=0,"",データベース!AM3) ->  | M29: =VALUE(データベース!AN3) -> 10 | N29: 60 | P29: =IF(L29="非課税",L29 & " ","") & IF(データベース!AO3=0,"",データベース!AO3) ->  | R29: 60
G30: 7 | H30: =データベース!AP3 -> サンプル | K30: =VALUE(データベース!AQ3) -> 7 | L30: =IF(データベース!AR3=0,"",データベース!AR3) ->  | M30: =VALUE(データベース!AS3) -> 10 | N30: 70 | P30: =IF(L30="非課税",L30 & " ","") & IF(データベース!AT3=0,"",データベース!AT3) ->  | R30: 70
G31: 8 | H31: =データベース!AU3 -> サンプル | K31: =VALUE(データベース!AV3) -> 8 | L31: =IF(データベース!AW3=0,"",データベース!AW3) ->  | M31: =VALUE(データベース!AX3) -> 10 | N31: 80 | P31: =IF(L31="非課税",L31 & " ","") & IF(データベース!AY3=0,"",データベース!AY3) ->  | R31: 80
G32: 9 | H32: =データベース!AZ3 -> サンプル | K32: =VALUE(データベース!BA3) -> 9 | L32: =IF(データベース!BB3=0,"",データベース!BB3) ->  | M32: =VALUE(データベース!BC3) -> 10 | N32: 90 | P32: =IF(L32="非課税",L32 & " ","") & IF(データベース!BD3=0,"",データベース!BD3) ->  | R32: 90
G33: 10 | H33: =データベース!BE3 -> サンプル | K33: =VALUE(データベース!BF3) -> 10 | L33: =IF(データベース!BG3=0,"",データベース!BG3) ->  | M33: =VALUE(データベース!BH3) -> 10 | N33: 100 | P33: =IF(L33="非課税",L33 & " ","") & IF(データベース!BI3=0,"",データベース!BI3) ->  | R33: 100
M34: 合計 | N34: =SUM(N24:O33) -> 1540 | Q34: 合計 | R34: =SUM(R24:R33) -> 1540

Sheet 出力様式 (hidden)
H1: 作成日 | I1: =TODAY() -> 2019-10-30
F3: 請求元 | G3: ="取引先コード " & IF(入力様式!$O9="","",入力様式!$O9) & " " & IF(入力様式!$D2="","",入力様式!$D2) -> 取引先コード サンプル
G4: ="〒" & IF(入力様式!$O2="","",入力様式!$O2) -> 〒
A5: 指定請求書 | D5: 2019-09-01 | G5: =IF(入力様式!$O3="","",入力様式!$O3) -> 
G6: =IF(入力様式!$O4="","",入力様式!$O4) -> 
A7: =VLOOKUP(入力様式!O10,{0,"";1,"〒910-3136";2,"〒912-0821";3,"〒321-4346"},2,FALSE) -> 〒910-3136 | G7: =IF(入力様式!$O5="","",入力様式!$O5) -> 
A8: =VLOOKUP(入力様式!O10,{0,"";1,"福井県福井市川尻町第40号126番地1";2,"福井県大野市七板40字1";3,"栃木県真岡市松山町26番1"},2,FALSE) -> 福井県福井市川尻町第40号126番地1 | G8: =IF(入力様式!$O6="","",入力様式!$O6) -> 
G9: =IF(入力様式!$O7="","","(TEL) " & 入力様式!$O7) -> 
A10: ファーストウッド株式会社 | D10: 御中 | G10: =IF(入力様式!$O8="","","(FAX) " & 入力様式!$O8) -> 
C11: 財務部
F12: 振込先① | G12: =IF(入力様式!$J$2="","",入力様式!$J$2) & " " & IF(入力様式!$J$3="","",入力様式!$J$3) -> 
G13: =IF(入力様式!$L$4="","","（" & 入力様式!$L$4 & "）") & DBCS(入力様式!$J$5) -> （普通）
B14: 請求金額 | C14: =IF(SUM(C55:D58)=0,"",SUM(C55:D58)) ->  | G14: ="口座名義 " & 入力様式!$J$6 -> 口座名義
B15: 消費税 | C15: =IF(SUM(E55:F58)=0,"",SUM(SUM(E55:F58))) ->  | F15: 振込先② | G15: =IF(入力様式!$J$8="","",入力様式!$J$8) & " " & IF(入力様式!$J$9="","",入力様式!$J$9) -> 
B16: 調整額 | C16: =IF($N57="","",N57) -> 0 | G16: =IF(入力様式!$L$10="","","（" & 入力様式!$L$10 & "）") & DBCS(入力様式!$J$11) -> 
B17: 今回計 | C17: =IF(N59="","",N59) ->  | F17: 振込先③ | G17: =IF(入力様式!$J$13="","",入力様式!$J$13) & " " & IF(入力様式!$J$14="","",入力様式!$J$14) -> 
B18: 繰越金額 | C18: =IF(I20="","",I20) -> 0 | G18: =IF(入力様式!$L$15="","","（" & 入力様式!$L$15 & "）") & DBCS(入力様式!$J$16) -> 
B19: 合計 | C19: =IF(C17="",0,C17)+IF(C18="",0,C18) -> 0
G20: 前月繰越金額 | I20: 0
A22: 日付 | B22: 伝票№ | C22: 納入部署 | D22: 品名 | G22: 数量 | H22: 単価 | I22: 金額 | K22: 備考
N34: =SUM(E55:F58) -> 0
N52: 0.1 | O52: 8%(軽減税率) | P52: 8%（旧税率） | Q52: 非課税
N53: 税抜金額 | O53: 税抜金額 | P53: 税抜金額 | Q53: 税抜金額 | R53: 合計金額
A54: 課税区分 | C54: 税抜金額 | E54: 消費税 | G54: 合計金額 | N54: =SUMIF(J23:J52,1,I23:I52)+SUMIF(J23:J52,"",I23:I52) -> 0 | O54: =SUMIF(J23:J52,2,I23:I52) -> 0 | P54: =SUMIF(J23:J52,3,I23:I52) -> 0 | Q54: =SUMIF(J23:J52,9,I23:I52) -> 0 | R54: =SUM(P54:P54) -> 0
A55: 1:10%(19/10～) | C55: =IF(N54=0,"",N54) ->  | E55: =IF(N54="","",IF(入力様式!$J$18=TRUE,ROUNDDOWN(N54*請求書作成システム!$J$4/100,0),ROUND(N54*請求書作成システム!$J$4/100,0))) -> 0 | G55: =IF(SUM(C55:E55)=0,"",SUM(C55:E55)) -> 
A56: 2: 8%(軽減税率) | C56: =IF(O54=0,"",O54) ->  | E56: =IF(O54="","",IF(入力様式!$J$18=TRUE,ROUNDDOWN(O54*請求書作成システム!$K$4/100,0),ROUND(O54*請求書作成システム!$K$4/100,0))) -> 0 | G56: =IF(SUM(C56:E56)=0,"",SUM(C56:E56)) ->  | N56: 調整額
A57: 3: 8%(～19/09) | C57: =IF(P54=0,"",P54) ->  | E57: =IF(P54="","",IF(入力様式!$J$18=TRUE,ROUNDDOWN(P54*請求書作成システム!$L$4/100,0),ROUND(P54*請求書作成システム!$L$4/100,0))) -> 0 | G57: =IF(SUM(C57:E57)=0,"",SUM(C57:E57)) ->  | N57: 0
A58: 9:非課税 | C58: =IF(Q54=0,"",Q54) ->  | E58: - | G58: =C58 ->  | N58: 今月請求金額合計
N59: =IF(SUM(G55:H58,N57)=0,"",SUM(G55:H58,N57)) -> 
I60: 管理№ | K60: 財-請-00001

Sheet データベース (hidden)
A1: 1 | E1: 発注部門 | F1: 件名 | G1: 伝票番号 | H1: 納入部署 | I1: 年 | J1: 月 | K1: 日 | L1: 品名1 | M1: 数量1 | N1: 課税1 | O1: 単価1 | P1: 備考1 | Q1: 品名2 | R1: 数量2 | S1: 課税2 | T1: 単価2 | U1: 備考2 | V1: 品名3 | W1: 数量3 | X1: 課税3 | Y1: 単価3 | Z1: 備考3 | AA1: 品名4 | AB1: 数量4 | AC1: 課税4 | AD1: 単価4 | AE1: 備考4 | AF1: 品名5 | AG1: 数量5 | AH1: 課税5 | AI1: 単価5 | AJ1: 備考5 | AK1: 品名6 | AL1: 数量6 | AM1: 課税6 | AN1: 単価6 | AO1: 備考6 | AP1: 品名7 | AQ1: 数量7 | AR1: 課税7 | AS1: 単価7 | AT1: 備考7 | AU1: 品名8 | AV1: 数量8 | AW1: 課税8 | AX1: 単価8 | AY1: 備考8 | AZ1: 品名9 | BA1: 数量9 | BB1: 課税9 | BC1: 単価9 | BD1: 備考9 | BE1: 品名10 | BF1: 数量10 | BG1: 課税10 | BH1: 単価10 | BI1: 備考10 | BJ1: 取引先code
A2: =COUNTA(E4:E5003) -> 1 | B2: 呼出DATA | C2: =CONCATENATE(I2,"/",IF(LEN(J2)=1,0&J2,J2),"/",IF(LEN(K2)=1,0&K2,K2)," ",F2," ",L2,M2,"個","他") -> 2019/09/01 サンプル サンプル1個他 | E2: =IF($A$1<=5000,VLOOKUP($A$1,$B$4:$BI$1003,4),"") -> サンプル | F2: =IF($A$1<=5000,IF(VLOOKUP($A$1,$B$4:$BI$1003,5)=0,"",VLOOKUP($A$1,$B$4:$BI$1003,5)),"") -> サンプル | G2: =IF($A$1<=5000,VLOOKUP($A$1,$B$4:$BI$1003,6),"") -> 0123-4567-8901 | H2: =IF($A$1<=5000,VLOOKUP($A$1,$B$4:$BI$1003,7),"") -> サンプル | I2: =IF($A$1<=5000,VLOOKUP($A$1,$B$4:$BI$1003,8),YEAR(TODAY())) -> 2019 | J2: =IF($A$1<=5000,VLOOKUP($A$1,$B$4:$BI$1003,9),MONTH(TODAY())) -> 9 | K2: =IF($A$1<=5000,VLOOKUP($A$1,$B$4:$BI$1003,10),DAY(TODAY())) -> 1 | L2: =IF($A$1<=5000,VLOOKUP($A$1,$B$4:$BI$1003,11),"") -> サンプル | M2: =IF($A$1<=5000,VLOOKUP($A$1,$B$4:$BI$1003,12),0) -> 1 | N2: =IF($A$1<=5000,IF(VLOOKUP($A$1,$B$4:$BI$1003,13)=0,"",VLOOKUP($A$1,$B$4:$BI$1003,13)),"") ->  | O2: =IF($A$1<=5000,VLOOKUP($A$1,$B$4:$BI$1003,14),0) -> 1000 | P2: =IF($A$1<=5000,IF(VLOOKUP($A$1,$B$4:$BI$1003,15)=0,"",VLOOKUP($A$1,$B$4:$BI$1003,15)),"") ->  | Q2: =IF($A$1<=5000,VLOOKUP($A$1,$B$4:$BI$1003,16),"") -> サンプル | R2: =IF($A$1<=5000,VLOOKUP($A$1,$B$4:$BI$1003,17),0) -> 2 | S2: =IF($A$1<=5000,IF(VLOOKUP($A$1,$B$4:$BI$1003,18)=0,"",VLOOKUP($A$1,$B$4:$BI$1003,18)),"") ->  | T2: =IF($A$1<=5000,VLOOKUP($A$1,$B$4:$BI$1003,19),0) -> 10 | U2: =IF($A$1<=5000,IF(VLOOKUP($A$1,$B$4:$BI$1003,20)=0,"",VLOOKUP($A$1,$B$4:$BI$1003,20)),"") ->  | V2: =IF($A$1<=5000,VLOOKUP($A$1,$B$4:$BI$1003,21),"") -> サンプル | W2: =IF($A$1<=5000,VLOOKUP($A$1,$B$4:$BI$1003,22),0) -> 3 | X2: =IF($A$1<=5000,IF(VLOOKUP($A$1,$B$4:$BI$1003,23)=0,"",VLOOKUP($A$1,$B$4:$BI$1003,23)),"") ->  | Y2: =IF($A$1<=5000,VLOOKUP($A$1,$B$4:$BI$1003,24),0) -> 10 | Z2: =IF($A$1<=5000,IF(VLOOKUP($A$1,$B$4:$BI$1003,25)=0,"",VLOOKUP($A$1,$B$4:$BI$1003,25)),"") ->  | AA2: =IF($A$1<=5000,VLOOKUP($A$1,$B$4:$BI$1003,26),"") -> サンプル | AB2: =IF($A$1<=5000,VLOOKUP($A$1,$B$4:$BI$1003,27),0) -> 4 | AC2: =IF($A$1<=5000,IF(VLOOKUP($A$1,$B$4:$BI$1003,28)=0,"",VLOOKUP($A$1,$B$4:$BI$1003,28)),"") ->  | AD2: =IF($A$1<=5000,VLOOKUP($A$1,$B$4:$BI$1003,29),0) -> 10 | AE2: =IF($A$1<=5000,IF(VLOOKUP($A$1,$B$4:$BI$1003,30)=0,"",VLOOKUP($A$1,$B$4:$BI$1003,30)),"") ->  | AF2: =IF($A$1<=5000,VLOOKUP($A$1,$B$4:$BI$1003,31),"") -> サンプル | AG2: =IF($A$1<=5000,VLOOKUP($A$1,$B$4:$BI$1003,32),0) -> 5 | AH2: =IF($A$1<=5000,IF(VLOOKUP($A$1,$B$4:$BI$1003,33)=0,"",VLOOKUP($A$1,$B$4:$BI$1003,33)),"") ->  | AI2: =IF($A$1<=5000,VLOOKUP($A$1,$B$4:$BI$1003,34),0) -> 10 | AJ2: =IF($A$1<=5000,IF(VLOOKUP($A$1,$B$4:$BI$1003,35)=0,"",VLOOKUP($A$1,$B$4:$BI$1003,35)),"") ->  | AK2: =IF($A$1<=5000,VLOOKUP($A$1,$B$4:$BI$1003,36),"") -> サンプル | AL2: =IF($A$1<=5000,VLOOKUP($A$1,$B$4:$BI$1003,37),0) -> 6 | AM2: =IF($A$1<=5000,IF(VLOOKUP($A$1,$B$4:$BI$1003,38)=0,"",VLOOKUP($A$1,$B$4:$BI$1003,38)),"") ->  | AN2: =IF($A$1<=5000,VLOOKUP($A$1,$B$4:$BI$1003,39),0) -> 10 | AO2: =IF($A$1<=5000,IF(VLOOKUP($A$1,$B$4:$BI$1003,40)=0,"",VLOOKUP($A$1,$B$4:$BI$1003,40)),"") ->  | AP2: =IF($A$1<=5000,VLOOKUP($A$1,$B$4:$BI$1003,41),"") -> サンプル | AQ2: =IF($A$1<=5000,VLOOKUP($A$1,$B$4:$BI$1003,42),0) -> 7 | AR2: =IF($A$1<=5000,IF(VLOOKUP($A$1,$B$4:$BI$1003,43)=0,"",VLOOKUP($A$1,$B$4:$BI$1003,43)),"") ->  | AS2: =IF($A$1<=5000,VLOOKUP($A$1,$B$4:$BI$1003,44),0) -> 10 | AT2: =IF($A$1<=5000,IF(VLOOKUP($A$1,$B$4:$BI$1003,45)=0,"",VLOOKUP($A$1,$B$4:$BI$1003,45)),"") ->  | AU2: =IF($A$1<=5000,VLOOKUP($A$1,$B$4:$BI$1003,46),"") -> サンプル | AV2: =IF($A$1<=5000,VLOOKUP($A$1,$B$4:$BI$1003,47),0) -> 8 | AW2: =IF($A$1<=5000,IF(VLOOKUP($A$1,$B$4:$BI$1003,48)=0,"",VLOOKUP($A$1,$B$4:$BI$1003,48)),"") ->  | AX2: =IF($A$1<=5000,VLOOKUP($A$1,$B$4:$BI$1003,49),0) -> 10 | AY2: =IF($A$1<=5000,IF(VLOOKUP($A$1,$B$4:$BI$1003,50)=0,"",VLOOKUP($A$1,$B$4:$BI$1003,50)),"") ->  | AZ2: =IF($A$1<=5000,VLOOKUP($A$1,$B$4:$BI$1003,51),"") -> サンプル | BA2: =IF($A$1<=5000,VLOOKUP($A$1,$B$4:$BI$1003,52),0) -> 9 | BB2: =IF($A$1<=5000,IF(VLOOKUP($A$1,$B$4:$BI$1003,53)=0,"",VLOOKUP($A$1,$B$4:$BI$1003,53)),"") ->  | BC2: =IF($A$1<=5000,VLOOKUP($A$1,$B$4:$BI$1003,54),0) -> 10 | BD2: =IF($A$1<=5000,IF(VLOOKUP($A$1,$B$4:$BI$1003,55)=0,"",VLOOKUP($A$1,$B$4:$BI$1003,55)),"") ->  | BE2: =IF($A$1<=5000,VLOOKUP($A$1,$B$4:$BI$1003,56),"") -> サンプル | BF2: =IF($A$1<=5000,VLOOKUP($A$1,$B$4:$BI$1003,57),0) -> 10 | BG2: =IF($A$1<=5000,IF(VLOOKUP($A$1,$B$4:$BI$1003,58)=0,"",VLOOKUP($A$1,$B$4:$BI$1003,58)),"") ->  | BH2: =IF($A$1<=5000,VLOOKUP($A$1,$B$4:$BI$1003,59),0) -> 10 | BI2: =IF($A$1<=5000,IF(VLOOKUP($A$1,$B$4:$BI$1003,60)=0,"",VLOOKUP($A$1,$B$4:$BI$1003,60)),"") ->  | BJ2: =IF($A$1<=5000,IF(VLOOKUP($A$1,$B$4:$BJ$1003,61)=0,"",VLOOKUP($A$1,$B$4:$BJ$1003,61)),"") -> 1
A3: 1 | B3: 入力DATA | C3: =CONCATENATE(I3,"/",IF(LEN(J3)=1,0&J3,J3),"/",IF(LEN(K3)=1,0&K3,K3)," ",F3," ",L3,M3,"個","他") -> 2019/09/01 サンプル サンプル1個他 | E3: サンプル | F3: サンプル | G3: 0123-4567-8901 | H3: サンプル | I3: 2019 | J3: 9 | K3: 1 | L3: サンプル | M3: 1 | O3: 1000 | Q3: サンプル | R3: 2 | T3: 10 | V3: サンプル | W3: 3 | Y3: 10 | AA3: サンプル | AB3: 4 | AD3: 10 | AF3: サンプル | AG3: 5 | AI3: 10 | AK3: サンプル | AL3: 6 | AN3: 10 | AP3: サンプル | AQ3: 7 | AS3: 10 | AU3: サンプル | AV3: 8 | AX3: 10 | AZ3: サンプル | BA3: 9 | BC3: 10 | BE3: サンプル | BF3: 10 | BH3: 10 | BJ3: 1
B4: 1 | C4: =CONCATENATE(I4,"/",IF(LEN(J4)=1,0&J4,J4),"/",IF(LEN(K4)=1,0&K4,K4)," ",F4," ",L4,M4,"個","他") -> 2019/09/01 サンプル サンプル1個他 | E4: サンプル | F4: サンプル | G4: 0123-4567-8901 | H4: サンプル | I4: 2019 | J4: 9 | K4: 1 | L4: サンプル | M4: 1 | O4: 1000 | Q4: サンプル | R4: 2 | T4: 10 | V4: サンプル | W4: 3 | Y4: 10 | AA4: サンプル | AB4: 4 | AD4: 10 | AF4: サンプル | AG4: 5 | AI4: 10 | AK4: サンプル | AL4: 6 | AN4: 10 | AP4: サンプル | AQ4: 7 | AS4: 10 | AU4: サンプル | AV4: 8 | AX4: 10 | AZ4: サンプル | BA4: 9 | BC4: 10 | BE4: サンプル | BF4: 10 | BH4: 10 | BJ4: 1
B5: 2 | C5: // 個他 | BJ5: 1
B6: =B5+1 -> 3 | C6: // 個他 | BJ6: 1
B7: =B6+1 -> 4 | C7: =CONCATENATE(I7,"/",IF(LEN(J7)=1,0&J7,J7),"/",IF(LEN(K7)=1,0&K7,K7)," ",F7," ",L7,M7,"個","他") -> // 個他 | BJ7: 1
B8: 5 | C8: // 個他
B9: 6 | C9: // 個他
B10: 7 | C10: // 個他
B11: 8 | C11: // 個他
B12: 9 | C12: // 個他
B13: 10 | C13: // 個他
B14: 11 | C14: // 個他
B15: 12 | C15: // 個他
B16: 13 | C16: // 個他
B17: 14 | C17: // 個他
B18: 15 | C18: // 個他
B19: 16 | C19: // 個他
B20: 17 | C20: // 個他
B21: 18 | C21: // 個他
B22: 19 | C22: // 個他
B23: 20 | C23: // 個他
B24: 21 | C24: // 個他
B25: 22 | C25: // 個他
B26: 23 | C26: // 個他
B27: 24 | C27: // 個他
B28: 25 | C28: // 個他
B29: 26 | C29: // 個他
B30: 27 | C30: // 個他
B31: 28 | C31: // 個他
B32: 29 | C32: // 個他
B33: 30 | C33: // 個他
B34: 31 | C34: // 個他
B35: 32 | C35: // 個他
B36: 33 | C36: // 個他
B37: 34 | C37: // 個他
B38: 35 | C38: // 個他
B39: 36 | C39: // 個他
B40: 37 | C40: // 個他
B41: 38 | C41: // 個他
B42: 39 | C42: // 個他
B43: 40 | C43: // 個他
B44: 41 | C44: // 個他
B45: 42 | C45: // 個他
B46: 43 | C46: // 個他
B47: 44 | C47: // 個他
B48: 45 | C48: // 個他
B49: 46 | C49: // 個他
B50: 47 | C50: // 個他
B51: 48 | C51: // 個他
B52: 49 | C52: // 個他
B53: 50 | C53: // 個他
B54: 51 | C54: // 個他
B55: 52 | C55: // 個他
B56: 53 | C56: // 個他
B57: 54 | C57: // 個他
B58: 55 | C58: // 個他
B59: 56 | C59: // 個他
B60: 57 | C60: // 個他
B61: 58 | C61: // 個他
B62: 59 | C62: // 個他
B63: 60 | C63: // 個他
B64: 61 | C64: // 個他
B65: 62 | C65: // 個他
B66: 63 | C66: // 個他
B67: 64 | C67: // 個他
B68: 65 | C68: =CONCATENATE(I68,"/",IF(LEN(J68)=1,0&J68,J68),"/",IF(LEN(K68)=1,0&K68,K68)," ",F68," ",L68,M68,"個","他") -> // 個他
B69: 66 | C69: // 個他
B70: 67 | C70: // 個他
B71: =B70+1 -> 68 | C71: // 個他
B72: 69 | C72: // 個他
B73: 70 | C73: // 個他
B74: 71 | C74: // 個他
B75: 72 | C75: // 個他
B76: 73 | C76: // 個他
B77: 74 | C77: // 個他
B78: 75 | C78: // 個他
B79: 76 | C79: // 個他
B80: 77 | C80: // 個他
B81: 78 | C81: // 個他
B82: 79 | C82: // 個他
B83: 80 | C83: // 個他
B84: 81 | C84: // 個他
B85: 82 | C85: // 個他
B86: 83 | C86: // 個他
B87: 84 | C87: // 個他
B88: 85 | C88: // 個他
B89: 86 | C89: // 個他
B90: 87 | C90: // 個他
B91: 88 | C91: // 個他
B92: 89 | C92: // 個他
B93: 90 | C93: // 個他
B94: 91 | C94: // 個他
B95: 92 | C95: // 個他
B96: 93 | C96: // 個他
B97: 94 | C97: // 個他
B98: 95 | C98: // 個他
B99: 96 | C99: // 個他
B100: 97 | C100: // 個他
B101: 98 | C101: // 個他
B102: 99 | C102: // 個他
B103: 100 | C103: // 個他
B104: 101 | C104: // 個他
B105: 102 | C105: // 個他
B106: 103 | C106: // 個他
B107: 104 | C107: // 個他
B108: 105 | C108: // 個他
B109: 106 | C109: // 個他
B110: 107 | C110: // 個他
B111: 108 | C111: // 個他
B112: 109 | C112: // 個他
B113: 110 | C113: // 個他
B114: 111 | C114: // 個他
B115: 112 | C115: // 個他
B116: 113 | C116: // 個他
B117: 114 | C117: // 個他
B118: 115 | C118: // 個他
B119: 116 | C119: // 個他
B120: 117 | C120: // 個他
B121: 118 | C121: // 個他
B122: 119 | C122: // 個他
B123: 120 | C123: // 個他
B124: 121 | C124: // 個他
B125: 122 | C125: // 個他
B126: 123 | C126: // 個他
B127: 124 | C127: // 個他
B128: 125 | C128: // 個他
B129: 126 | C129: // 個他
B130: 127 | C130: // 個他
B131: 128 | C131: // 個他
B132: 129 | C132: =CONCATENATE(I132,"/",IF(LEN(J132)=1,0&J132,J132),"/",IF(LEN(K132)=1,0&K132,K132)," ",F132," ",L132,M132,"個","他") -> // 個他
B133: 130 | C133: // 個他
B134: 131 | C134: // 個他
B135: =B134+1 -> 132 | C135: // 個他
B136: 133 | C136: // 個他
B137: 134 | C137: // 個他
B138: 135 | C138: // 個他
B139: 136 | C139: // 個他
B140: 137 | C140: // 個他
B141: 138 | C141: // 個他
B142: 139 | C142: // 個他
B143: 140 | C143: // 個他
B144: 141 | C144: // 個他
B145: 142 | C145: // 個他
B146: 143 | C146: // 個他
B147: 144 | C147: // 個他
B148: 145 | C148: // 個他
B149: 146 | C149: // 個他
B150: 147 | C150: // 個他
B151: 148 | C151: // 個他
B152: 149 | C152: // 個他
B153: 150 | C153: // 個他
B154: 151 | C154: // 個他
B155: 152 | C155: // 個他
B156: 153 | C156: // 個他
B157: 154 | C157: // 個他
B158: 155 | C158: // 個他
B159: 156 | C159: // 個他
B160: 157 | C160: // 個他
B161: 158 | C161: // 個他
B162: 159 | C162: // 個他
B163: 160 | C163: // 個他
B164: 161 | C164: // 個他
B165: 162 | C165: // 個他
B166: 163 | C166: // 個他
B167: 164 | C167: // 個他
B168: 165 | C168: // 個他
B169: 166 | C169: // 個他
B170: 167 | C170: // 個他
B171: 168 | C171: // 個他
B172: 169 | C172: // 個他
B173: 170 | C173: // 個他
B174: 171 | C174: // 個他
B175: 172 | C175: // 個他
B176: 173 | C176: // 個他
B177: 174 | C177: // 個他
B178: 175 | C178: // 個他
B179: 176 | C179: // 個他
B180: 177 | C180: // 個他
B181: 178 | C181: // 個他
B182: 179 | C182: // 個他
B183: 180 | C183: // 個他
B184: 181 | C184: // 個他
B185: 182 | C185: // 個他
B186: 183 | C186: // 個他
B187: 184 | C187: // 個他
B188: 185 | C188: // 個他
B189: 186 | C189: // 個他
B190: 187 | C190: // 個他
B191: 188 | C191: // 個他
B192: 189 | C192: // 個他
B193: 190 | C193: // 個他
B194: 191 | C194: // 個他
B195: 192 | C195: // 個他
B196: 193 | C196: =CONCATENATE(I196,"/",IF(LEN(J196)=1,0&J196,J196),"/",IF(LEN(K196)=1,0&K196,K196)," ",F196," ",L196,M196,"個","他") -> // 個他
B197: 194 | C197: // 個他
B198: 195 | C198: // 個他
B199: =B198+1 -> 196 | C199: // 個他
B200: 197 | C200: // 個他
... 4803 more rows

Sheet 処理シート (hidden)
A1: 2019 | B1: 2019-09-01 | C1: 0123-4567-8901 | D1: サンプル | E1: サンプル | G1: 1 | H1: 1000 | I1: 1000 | K1: -4567-89012019/09/01 サンプル サンプル1個他 | L1: 2019/09/01 サンプル サンプル1個他 | M1: 2019-09-01 | N1: 0123-4567-8901 | O1: サンプル | P1: サンプル | R1: 1 | S1: 1000 | T1: 1000 | V1: -4567-89012019/09/01 サンプル サンプル1個他
A2: 9 | B2: 2019-09-01 | C2: 0123-4567-8901 | D2: サンプル | E2: サンプル | G2: 2 | H2: 10 | I2: 20 | K2: -4567-89012019/09/01 サンプル サンプル1個他 | L2: 2019/09/01 サンプル サンプル1個他 | M2: 2019-09-01 | N2: 0123-4567-8901 | O2: サンプル | P2: サンプル | R2: 2 | S2: 10 | T2: 20 | V2: -4567-89012019/09/01 サンプル サンプル1個他
A3: サンプル | B3: 2019-09-01 | C3: 0123-4567-8901 | D3: サンプル | E3: サンプル | G3: 3 | H3: 10 | I3: 30 | K3: -4567-89012019/09/01 サンプル サンプル1個他 | L3: 2019/09/01 サンプル サンプル1個他 | M3: 2019-09-01 | N3: 0123-4567-8901 | O3: サンプル | P3: サンプル | R3: 3 | S3: 10 | T3: 30 | V3: -4567-89012019/09/01 サンプル サンプル1個他
A4: =COUNTA(B:B) -> 10 | B4: 2019-09-01 | C4: 0123-4567-8901 | D4: サンプル | E4: サンプル | G4: 4 | H4: 10 | I4: 40 | K4: -4567-89012019/09/01 サンプル サンプル1個他 | L4: 2019/09/01 サンプル サンプル1個他 | M4: 2019-09-01 | N4: 0123-4567-8901 | O4: サンプル | P4: サンプル | R4: 4 | S4: 10 | T4: 40 | V4: -4567-89012019/09/01 サンプル サンプル1個他
B5: 2019-09-01 | C5: 0123-4567-8901 | D5: サンプル | E5: サンプル | G5: 5 | H5: 10 | I5: 50 | K5: -4567-89012019/09/01 サンプル サンプル1個他 | L5: 2019/09/01 サンプル サンプル1個他 | M5: 2019-09-01 | N5: 0123-4567-8901 | O5: サンプル | P5: サンプル | R5: 5 | S5: 10 | T5: 50 | V5: -4567-89012019/09/01 サンプル サンプル1個他
B6: 2019-09-01 | C6: 0123-4567-8901 | D6: サンプル | E6: サンプル | G6: 6 | H6: 10 | I6: 60 | K6: -4567-89012019/09/01 サンプル サンプル1個他 | L6: 2019/09/01 サンプル サンプル1個他 | M6: 2019-09-01 | N6: 0123-4567-8901 | O6: サンプル | P6: サンプル | R6: 6 | S6: 10 | T6: 60 | V6: -4567-89012019/09/01 サンプル サンプル1個他
B7: 2019-09-01 | C7: 0123-4567-8901 | D7: サンプル | E7: サンプル | G7: 7 | H7: 10 | I7: 70 | K7: -4567-89012019/09/01 サンプル サンプル1個他 | L7: 2019/09/01 サンプル サンプル1個他 | M7: 2019-09-01 | N7: 0123-4567-8901 | O7: サンプル | P7: サンプル | R7: 7 | S7: 10 | T7: 70 | V7: -4567-89012019/09/01 サンプル サンプル1個他
B8: 2019-09-01 | C8: 0123-4567-8901 | D8: サンプル | E8: サンプル | G8: 8 | H8: 10 | I8: 80 | K8: -4567-89012019/09/01 サンプル サンプル1個他 | L8: 2019/09/01 サンプル サンプル1個他 | M8: 2019-09-01 | N8: 0123-4567-8901 | O8: サンプル | P8: サンプル | R8: 8 | S8: 10 | T8: 80 | V8: -4567-89012019/09/01 サンプル サンプル1個他
B9: 2019-09-01 | C9: 0123-4567-8901 | D9: サンプル | E9: サンプル | G9: 9 | H9: 10 | I9: 90 | K9: -4567-89012019/09/01 サンプル サンプル1個他 | L9: 2019/09/01 サンプル サンプル1個他 | M9: 2019-09-01 | N9: 0123-4567-8901 | O9: サンプル | P9: サンプル | R9: 9 | S9: 10 | T9: 90 | V9: -4567-89012019/09/01 サンプル サンプル1個他
B10: 2019-09-01 | C10: 0123-4567-8901 | D10: サンプル | E10: サンプル | G10: 10 | H10: 10 | I10: 100 | K10: -4567-89012019/09/01 サンプル サンプル1個他 | L10: 2019/09/01 サンプル サンプル1個他 | M10: 2019-09-01 | N10: 0123-4567-8901 | O10: サンプル | P10: サンプル | R10: 10 | S10: 10 | T10: 100 | V10: -4567-89012019/09/01 サンプル サンプル1個他

Sheet 短縮 (hidden)
A1: № | B1: 品名 | C1: 消費税課税 | G1: № | H1: 発注部門 | I1: 取引先コード | K1: № | L1: 伝票件名 | M1: 伝票番号 | O1: № | P1: 納入部署
A2: 1 | B2: サンプル | G2: 1 | H2: サンプル | I2: 1 | K2: 1 | O2: 1 | P2: 集成材
A3: 2 | G3: 2 | K3: 2 | O3: 2 | P3: プレカット
A4: 3 | G4: 3 | K4: 3 | O4: 3 | P4: 製材
A5: 4 | G5: 4 | K5: 4 | O5: 4 | P5: 総務
A6: 5 | G6: 5 | K6: 5 | O6: 5 | P6: 営繕
A7: 6 | G7: 6 | K7: 6 | O7: 6 | P7: 安全
A8: 7 | G8: 7 | K8: 7 | O8: 7
A9: 8 | G9: 8 | K9: 8 | O9: 8
A10: 9 | G10: 9 | K10: 9 | O10: 9
A11: 10 | G11: 10 | K11: 10 | O11: 10
A12: 11 | G12: 11 | K12: 11 | O12: 11
A13: 12 | G13: 12 | K13: 12 | O13: 12
A14: 13 | G14: 13 | K14: 13 | O14: 13
A15: 14 | G15: 14 | K15: 14 | O15: 14
A16: 15 | G16: 15 | K16: 15 | O16: 15
A17: 16 | G17: 16 | K17: 16 | O17: 16
A18: 17 | G18: 17 | K18: 17 | O18: 17
A19: 18 | G19: 18 | K19: 18 | O19: 18
A20: 19 | G20: 19 | K20: 19 | O20: 19
A21: 20 | G21: 20 | K21: 20 | O21: 20
A22: 21 | G22: 21 | K22: 21 | O22: 21
A23: 22 | G23: 22 | K23: 22 | O23: 22
A24: 23 | G24: 23 | K24: 23 | O24: 23
A25: 24 | G25: 24 | K25: 24 | O25: 24
A26: 25 | G26: 25 | K26: 25 | O26: 25
A27: 26 | G27: 26 | K27: 26 | O27: 26
A28: 27 | G28: 27 | K28: 27 | O28: 27
A29: 28 | G29: 28 | K29: 28 | O29: 28
A30: 29 | G30: 29 | K30: 29 | O30: 29
A31: 30 | G31: 30 | K31: 30 | O31: 30
A32: 31 | G32: 31 | K32: 31 | O32: 31
A33: 32 | G33: 32 | K33: 32 | O33: 32
A34: 33 | G34: 33 | K34: 33 | O34: 33
A35: 34 | G35: 34 | K35: 34 | O35: 34
A36: 35 | G36: 35 | K36: 35 | O36: 35
A37: 36 | G37: 36 | K37: 36 | O37: 36
A38: 37 | G38: 37 | K38: 37 | O38: 37
A39: 38 | G39: 38 | K39: 38 | O39: 38
A40: 39 | G40: 39 | K40: 39 | O40: 39
A41: 40 | G41: 40 | K41: 40 | O41: 40
A42: 41 | G42: 41 | K42: 41 | O42: 41
A43: 42 | G43: 42 | K43: 42 | O43: 42
A44: 43 | G44: 43 | K44: 43 | O44: 43
A45: 44 | G45: 44 | K45: 44 | O45: 44
A46: 45 | G46: 45 | K46: 45 | O46: 45
A47: 46 | G47: 46 | K47: 46 | O47: 46
A48: 47 | G48: 47 | K48: 47 | O48: 47
A49: 48 | G49: 48 | K49: 48 | O49: 48
A50: 49 | G50: 49 | K50: 49 | O50: 49
A51: 50 | G51: 50 | K51: 50 | O51: 50
A52: 51 | G52: 51 | K52: 51 | O52: 51
A53: 52 | G53: 52 | K53: 52 | O53: 52
A54: 53 | G54: 53 | K54: 53 | O54: 53
A55: 54 | G55: 54 | K55: 54 | O55: 54
A56: 55 | G56: 55 | K56: 55 | O56: 55
A57: 56 | G57: 56 | K57: 56 | O57: 56
A58: 57 | G58: 57 | K58: 57 | O58: 57
A59: 58 | G59: 58 | K59: 58 | O59: 58
A60: 59 | G60: 59 | K60: 59 | O60: 59
A61: 60 | G61: 60 | K61: 60 | O61: 60
A62: 61 | G62: 61 | K62: 61 | O62: 61
A63: 62 | G63: 62 | K63: 62 | O63: 62
A64: 63 | G64: 63 | K64: 63 | O64: 63
A65: 64 | G65: 64 | K65: 64 | O65: 64
A66: 65 | G66: 65 | K66: 65 | O66: 65
A67: 66 | G67: 66 | K67: 66 | O67: 66
A68: 67 | G68: 67 | K68: 67 | O68: 67
A69: 68 | G69: 68 | K69: 68 | O69: 68
A70: 69 | G70: 69 | K70: 69 | O70: 69
A71: 70 | G71: 70 | K71: 70 | O71: 70
A72: 71 | G72: 71 | K72: 71 | O72: 71
A73: 72 | G73: 72 | K73: 72 | O73: 72
A74: 73 | G74: 73 | K74: 73 | O74: 73
A75: 74 | G75: 74 | K75: 74 | O75: 74
A76: 75 | G76: 75 | K76: 75 | O76: 75
A77: 76 | G77: 76 | K77: 76 | O77: 76
A78: 77 | G78: 77 | K78: 77 | O78: 77
A79: 78 | G79: 78 | K79: 78 | O79: 78
A80: 79 | G80: 79 | K80: 79 | O80: 79
A81: 80 | G81: 80 | K81: 80 | O81: 80
A82: 81 | G82: 81 | K82: 81 | O82: 81
A83: 82 | G83: 82 | K83: 82 | O83: 82
A84: 83 | G84: 83 | K84: 83 | O84: 83
A85: 84 | G85: 84 | K85: 84 | O85: 84
A86: 85 | G86: 85 | K86: 85 | O86: 85
A87: 86 | G87: 86 | K87: 86 | O87: 86
A88: 87 | G88: 87 | K88: 87 | O88: 87
A89: 88 | G89: 88 | K89: 88 | O89: 88
A90: 89 | G90: 89 | K90: 89 | O90: 89
A91: 90 | G91: 90 | K91: 90 | O91: 90
A92: 91 | G92: 91 | K92: 91 | O92: 91
A93: 92 | G93: 92 | K93: 92 | O93: 92
A94: 93 | G94: 93 | K94: 93 | O94: 93
A95: 94 | G95: 94 | K95: 94 | O95: 94
A96: 95 | G96: 95 | K96: 95 | O96: 95
A97: 96 | G97: 96 | K97: 96 | O97: 96
A98: 97 | G98: 97 | K98: 97 | O98: 97
A99: 98 | G99: 98 | K99: 98 | O99: 98
A100: 99 | G100: 99 | K100: 99 | O100: 99
A101: 100 | G101: 100 | K101: 100 | O101: 100
